Cogmind - Beta 13 @@@ ROGUE MODE // 2024.05.02 @ 01:05:02 Player: void Result: Destroyed by Y-45 Defender with Beam Rifle Performance ------------- Evolutions (2) 1000 Regions Visited (4) 800 Robots Destroyed (17) 85 Value Destroyed (681) 681 Prototype IDs (8) 160 Alien Tech Used (0) 0 Bonus (-103) -103 TOTAL SCORE: 2623 Bonus ------- Follower Combat Kills 101 Friendly Fire -204 Cogmind --------- Core Integrity 0/550 Matter 300/300 Energy 100/100 System Corruption 6% Temperature Cool (9) Movement Core (50) Location -8/Materials Parts ------- > --- POWER (1) -------- (None) > --- PROPULSION (3) --- (None) > --- UTILITY (4) ------ (None) > --- WEAPON (3) ------- (None) > --- INVENTORY (5) ---- Improved Heat Sink Authchip [Weapon] Peak State ------------ > --- POWER ------------ Cooled Ion Engine > --- PROPULSION ------- Cooled Aerolev Unit > --- UTILITY ---------- Small Storage Unit Weight Redist. System Seismic Detector > --- WEAPON ----------- Medium Laser Small Laser Heavy Particle Gun > --- INVENTORY -------- Heavy Ion Engine Improved Heat Sink Authchip [Weapon] Improved EM Shotgun Small Laser Improved Medium Laser Improved Assault Rifle Mining Laser [Rating: 21] Favorites ----------- Power Ion Engine Engine Ion Engine Propulsion Light Treads Treads Light Treads Hover Unit Cooled Aerolev Unit Flight Unit Flight Unit Utility Small Storage Unit Device Seismic Detector Storage Small Storage Unit Processor Visual Processing Unit Weapon Small Laser Energy Gun Small Laser Energy Cannon Advanced Beam Cannon Ballistic Gun Improved Assault Rifle Launcher Grenade Launcher Special Weapon Mining Laser Build | -11 -10 -9 -9 -8 ------- Run | Yrd Mat Mat Sto Mat Slots Evolved 4 | . . 2 . 2 Power . | . . . . . Propulsion 1 | . . . . 1 Utility 2 | . . 1 . 1 Weapon 1 | . . 1 . . Parts Attached 39 | 6 2 2 20 9 Power 8 | 1 1 . 5 1 Engine 8 | 1 1 . 5 1 Core . | . . . . . Reactor . | . . . . . Propulsion 6 | 1 1 . 4 . Treads 4 | 1 1 . 2 . Leg . | . . . . . Wheel . | . . . . . Hover 1 | . . . 1 . Flight 1 | . . . 1 . Utility 5 | 2 . 1 2 . Device 3 | 1 . 1 1 . Storage 1 | 1 . . . . Processor 1 | . . . 1 . Hackware . | . . . . . Protection . | . . . . . Artifact . | . . . . . Weapon 20 | 2 . 1 9 8 Energy Gun 13 | 2 . 1 4 6 Energy Cannon 1 | . . . 1 . Ballistic Gun 3 | . . . 2 1 Ballistic Cannon . | . . . . . Launcher 2 | . . . 2 . Special Weapon 1 | . . . . 1 Impact Weapon . | . . . . . Slashing Weapon . | . . . . . Piercing Weapon . | . . . . . Special Melee Weapon . | . . . . . Unidentified Prototypes 8 | . . . 7 1 Parts Lost 16 | . . . 2 14 Power 3 | . . . 1 2 Propulsion 1 | . . . . 1 Utility 4 | . . . 1 3 Weapon 8 | . . . . 8 Highest Loss Streak 12 | . . . 1 12 To Critical Strikes . | . . . . . Average Slot Usage (%) 84 | . 99 97 90 60 Engine 10 | . 14 11 10 8 Treads 12 | . 27 22 7 . Hover 4 | . . . 7 8 Device 15 | . 14 19 19 13 Storage 11 | . 14 11 11 8 Energy Gun 26 | . 28 33 30 18 Ballistic Gun 1 | . . . . 3 Naked Turns 3 | . . . . 3 Heaviest Build 20 | 12 14 16 20 20 Greatest Support 46 | 20 40 40 46 15 Greatest Overweight (x) 4 | . . . 1 4 Average Overweight (x) . | . . . . 1 Largest Inventory Capacity 8 | 8 8 8 8 8 Average Capacity 7 | 7 8 8 8 7 Most Carried 8 | 1 4 4 8 8 Average Carried 4 | . 2 3 5 6 Final Capacity 8 | 8 8 8 8 5 Final Carried 7 | 1 4 4 7 2 Class Distribution -------------------- 52% | Gunner 40% | Mutant 6% | Skirmisher Dominant Class ---------------- Mutant | -10/Materials Gunner | -9/Materials Gunner | -9/Storage Gunner | -8/Materials Resources | -11 -10 -9 -9 -8 ----------- Run | Yrd Mat Mat Sto Mat Matter Collected 614 | 172 . 72 63 307 Remotely . | . . . . . Salvage Created 811 | 85 . 72 125 529 Parts 38 | 4 . 5 7 22 Haulers Intercepted . | . . . . . Recyclers Shooed . | . . . . . Parts Field Recycled . | . . . . . Retrieved Matter . | . . . . . Parts Self-Destructed . | . . . . . Prevented . | . . . . . Kills | -11 -10 -9 -9 -8 ------- Run | Yrd Mat Mat Sto Mat Combat Hostiles Destroyed 15 | . . 2 3 10 Guns 13 | . . 2 3 8 AOE 2 | . . . . 2 Classes Destroyed 6 | 2 . 1 2 1 Tunneler 1 | 1 . . . . Recycler 1 | 1 . . . . Swarmer 1 | . . . 1 . Grunt 10 | . . 2 . 8 Brawler 1 | . . . . 1 Sentry 3 | . . . 2 1 Best Kill Streak 3 | 2 . 1 2 3 Combat Bots Only 3 | . . 1 2 3 Max Kills in Single Turn 2 | 1 . 1 1 2 Gunslinging . | . . . . . Exploded 2 | . . . . 2 Melee . | . . . . . Uniques/NPCs Destroyed . | . . . . . Combat | -11 -10 -9 -9 -8 -------- Run | Yrd Mat Mat Sto Mat Hostile Shots Fired 151 | . . 9 15 127 Missed 32 | . . 3 4 25 Damage Taken 1963 | . . 75 233 1655 Core 627 | . . 14 57 556 Absorbed by Shields . | . . . . . Core Remaining (%) 94 | 100 100 . 82 . Volleys Fired 64 | 5 . 4 14 41 Largest 3 | 2 . 3 3 3 Hottest 146 | 90 . 130 130 146 Shots Fired 143 | 10 . 12 30 91 Gun 140 | 10 . 12 28 90 Cannon . | . . . . . Launcher 2 | . . . 2 . Special 1 | . . . . 1 Kinetic 15 | . . . . 15 Thermal 122 | 10 . 12 28 72 Explosive 2 | . . . 2 . Electromagnetic 4 | . . . . 4 Robot Hit Streak 7 | 6 . 5 7 7 Robot Miss Streak 4 | 1 . 2 4 4 Penetration Max . | . . . . . Secondary Targets 1 | . . . . 1 Max Gunslinging Chain 1 | . . . . 1 Shots Hit Robots 87 | 7 . 7 16 57 Core Hits 42 | 3 . 4 7 28 Critical Kills . | . . . . . Critical Parts Destroyed . | . . . . . Critical Strikes 3 | . . . 1 2 Burn 3 | . . . 1 2 Melee Attacks . | . . . . . Impact . | . . . . . Slashing . | . . . . . Piercing . | . . . . . Sneak Attacks . | . . . . . Combat Hostiles . | . . . . . Follow-up Attacks . | . . . . . Damage Inflicted 1432 | 83 . 81 264 1004 Guns 1193 | 83 . 81 210 819 Cannons . | . . . . . Explosions 204 | . . . 54 150 Melee . | . . . . . Ramming 11 | . . . . 11 Kinetic 144 | . . . . 144 Thermal 1143 | 83 . 81 210 769 Explosive 54 | . . . 54 . Electromagnetic 80 | . . . . 80 Impact . | . . . . . Slashing . | . . . . . Piercing . | . . . . . Highest Corruption 6 | . . . . 6 Average Corruption 5 | . . . . 5 Corruption Purged . | . . . . . Corruption Blocked . | . . . . . Effects 6 | . . . . 6 Message Errors 3 | . . . . 3 Matter Fused 1 | . . . . 1 Energy Discharges 1 | . . . . 1 Weapon Failures 1 | . . . . 1 Overload Shots . | . . . . . Overflow Damage 28 | . . . . 28 Projectiles . | . . . . . Explosions 28 | . . . . 28 Melee . | . . . . . Knockbacks . | . . . . . Impact . | . . . . . Kinetic . | . . . . . Secondary . | . . . . . Self-Inflicted Damage 89 | . . . 40 49 Shots 3 | . . . 2 1 Rammed 8 | . . . . 8 Targets Rammed 8 | . . . . 8 Kicked . | . . . . . Crushed . | . . . . . Highest Temperature 332 | 81 . 169 152 332 Average Temperature 82 | 36 . 74 52 98 Received Heat Transfer 963 | . . 45 72 846 Effects 1 | . . . . 1 Short Circuit 1 | . . . . 1 Siege Activations . | . . . . . Robots Corrupted . | . . . . . Combat Hostiles . | . . . . . Parts Fried . | . . . . . Impact Corruptions . | . . . . . Robots Melted . | . . . . . Combat Hostiles . | . . . . . Parts Melted 11 | . . 1 7 3 Heat Transferred 2802 | 223 . 211 682 1686 Parts Sabotaged . | . . . . . Parts Stolen . | . . . . . Parts Stripped . | . . . . . Power Chain Reactions 1 | . . . . 1 Alert | -11 -10 -9 -9 -8 ------- Run | Yrd Mat Mat Sto Mat Peak Influence 403 | 10 6 61 403 312 Initial 93 | . 6 1 25 93 Average 127 | 4 6 39 238 188 Maximum Alert Level 2 | . . . 2 1 Low Security (%) 64 | 100 100 100 29 45 Level 1 30 | . . . 54 54 Level 2 4 | . . . 15 . Level 3 . | . . . . . Level 4 . | . . . . . Level 5 . | . . . . . High Security . | . . . . . Max Security . | . . . . . Squads Dispatched 6 | . 1 2 1 2 Investigation 4 | . . 2 1 1 Extermination . | . . . . . Reinforcement 2 | . 1 . . 1 Assault . | . . . . . Garrison . | . . . . . Intercept . | . . . . . Searches Triggered . | . . . . . Construction Impeded . | . . . . . Haulers Reinforced . | . . . . . Active Scanning Responses . | . . . . . Cargo Convoy Interrupts . | . . . . . Stealth | -11 -10 -9 -9 -8 --------- Run | Yrd Mat Mat Sto Mat Distress Signals 3 | . 1 1 . 1 Communications Jammed . | . . . . . Distress Signals . | . . . . . Times Spotted 30 | . . 5 10 15 Peak Tracking Total 6 | . . 4 4 6 Tactical Retreats . | . . . . . Traps | -11 -10 -9 -9 -8 ------- Run | Yrd Mat Mat Sto Mat Traps Triggered 2 | . . . 1 1 Indirectly . | . . . . . Trap Hack Attempts . | . . . . . Triggered . | . . . . . Disarmed . | . . . . . Reprogrammed . | . . . . . Reused . | . . . . . Traps Extracted . | . . . . . Installed . | . . . . . Triggered . | . . . . . Machines | -11 -10 -9 -9 -8 ---------- Run | Yrd Mat Mat Sto Mat Machines Disabled 4 | . . . 4 . Max in Single Turn 1 | . . . 1 . Machines Repaired . | . . . . . Machines Dismantled . | . . . . . Machines Sabotaged . | . . . . . Overloaded Fab Kills . | . . . . . Hacking | -11 -10 -9 -9 -8 --------- Run | Yrd Mat Mat Sto Mat Machines Accessed 13 | . 2 2 7 2 Terminals 13 | . 2 2 7 2 Fabricators . | . . . . . Repair Stations . | . . . . . Recycling Units . | . . . . . Scanalyzers . | . . . . . Garrison Access . | . . . . . Total Hacks 26 | . 3 6 13 4 Successful 7 | . 1 . 6 . Failed 19 | . 2 6 7 4 Catastrophic 6 | . 1 . 4 1 Database Lockouts . | . . . . . Manual 9 | . 3 3 2 1 Terminals 26 | . 3 6 13 4 Fabricators . | . . . . . Repair Stations . | . . . . . Recycling Units . | . . . . . Scanalyzers . | . . . . . Garrison Access . | . . . . . Terminal Hacks 7 | . 1 . 6 . Record 3 | . . . 3 . Open Door 3 | . . . 3 . Alert Level 1 | . 1 . . . Fabricator Hacks . | . . . . . Repair Station Hacks . | . . . . . Recycling Unit Hacks . | . . . . . Scanalyzer . | . . . . . Garrison Access Hacks . | . . . . . Unauthorized Hacks . | . . . . . Terminals . | . . . . . Fabricators . | . . . . . Repair Stations . | . . . . . Recycling Units . | . . . . . Scanalyzers . | . . . . . Garrison Access . | . . . . . Data Cores Recovered . | . . . . . Used . | . . . . . Hacking Detections 9 | . 2 2 4 1 Full Trace Events 4 | . . 2 1 1 Feedback Events . | . . . . . Feedback Blocked . | . . . . . Robot Schematics Acquired . | . . . . . Robots Built . | . . . . . Authchips . | . . . . . Time . | . . . . . Total Robot Build Rating . | . . . . . Part Schematics Acquired . | . . . . . Parts Built . | . . . . . Authchips . | . . . . . Time . | . . . . . Total Part Build Rating . | . . . . . Parts Repaired . | . . . . . Time . | . . . . . Parts Recycled . | . . . . . Recycled Matter . | . . . . . Retrieved Matter . | . . . . . Retrieved Components . | . . . . . Parts Scanalyzed . | . . . . . Part Schematics Acquired . | . . . . . Parts Damaged . | . . . . . Bothacking | -11 -10 -9 -9 -8 ------------ Run | Yrd Mat Mat Sto Mat Used RIF Installer . | . . . . . Robots Hacked . | . . . . . Non-combat . | . . . . . Combat . | . . . . . Robot Hacks Applied . | . . . . . Relay Couplers Released . | . . . . . Fabnet Peak Effective % . | . . . . . Robots Rewired . | . . . . . Allies Hacked . | . . . . . Hacks Repelled . | . . . . . Allies | -11 -10 -9 -9 -8 -------- Run | Yrd Mat Mat Sto Mat Total Allies 1 | . . . 1 . Largest Group 1 | . . . 1 1 Highest-Rated Group 100 | . . . 100 100 Highest-Rated Ally 100 | . . . 100 100 Total Orders . | . . . . . Ally Attacks 12 | . . . 12 . Total Damage 563 | . . . 563 . Kills 7 | . . . 7 . Allies Corrupted . | . . . . . Allies Melted . | . . . . . Intel | -11 -10 -9 -9 -8 ------- Run | Yrd Mat Mat Sto Mat Robot Analysis Total . | . . . . . Derelict Logs Recovered . | . . . . . Drone Launches . | . . . . . Drone Recoveries . | . . . . . Exploration | -11 -10 -9 -9 -8 ------------- Run | Yrd Mat Mat Sto Mat Turns Passed 1479 | 106 374 161 432 406 Spaces Moved 938 | 54 209 90 328 257 Core 7 | 4 . . . 3 Treads 417 | 50 209 90 68 . Legs . | . . . . . Wheels . | . . . . . Hover 514 | . . . 260 254 Flight . | . . . . . Fastest Speed 50 | 50 160 160 50 100 Average Speed 117 | 151 160 160 85 100 Slowest Speed 250 | 160 160 160 160 250 Overloaded Moves . | . . . . . Propulsion Burnouts . | . . . . . Robots Hopped . | . . . . . Cave-ins Triggered . | . . . . . Exploration Rate (%) 24 | 4 34 9 48 29 Regions Visited 4 Branch Regions 1 Pre-discovered Areas . | . . . . . Known Exits Taken . | . . . . . Unknown Exits Taken 4 | 1 1 1 1 . Scrap Searched . | . . . . . Spaces Dug . | . . . . . Terrain Destroyed 11 | . . . 8 3 Melee . | . . . . . Projectile . | . . . . . AOE 11 | . . . 8 3 Terrain Rammed . | . . . . . Walls Destroyed . | . . . . . Machines Disabled . | . . . . . Actions | -11 -10 -9 -9 -8 --------- Run | Yrd Mat Mat Sto Mat Total 1189 | 65 248 98 451 327 Wait 100 | . 36 2 56 6 Move 934 | 53 208 89 327 257 Hop . | . . . . . Pick Up 17 | 1 2 1 10 3 Fast Attach 11 | 6 1 1 2 1 Attach 11 | . . 1 3 7 Detach 2 | . . . 2 . Swap 17 | . 1 . 15 1 Drop 12 | . . . 9 3 Fire 64 | 5 . 4 14 41 Melee . | . . . . . Ram 8 | . . . . 8 Kick . | . . . . . Crush . | . . . . . Escape Stasis 13 | . . . 13 . Rewire . | . . . . . Trap . | . . . . . Miscellaneous . | . . . . . Route ------- -11/Scrapyard -10/Materials -9/Materials -9/Storage -8/Materials (discovered 1 exit: [*Fac]) History --------- Turn | Location | Event 23 | -11/Scrapyard | Discovered new exit (range 15) 107 | -11/Scrapyard | Entered Materials 314 | -10/Materials | Build established: Mutant 335 | -10/Materials | Discovered new exit (range 13) 481 | -10/Materials | Entered another Materials area 481 | -9/Materials | Evolved 2 slots: Utility x1, Weapon x1 482 | -9/Materials | Discovered new exit (range 8) 642 | -9/Materials | Entered Storage 711 | -9/Storage | Met 01-MTF 1036 | -9/Storage | Discovered new exit (range 16) 1074 | -9/Storage | Entered Materials 1074 | -8/Materials | Accompanied by 1 ally (01-MTF) 1074 | -8/Materials | Evolved 2 slots: Propulsion x1, Utility x1 1079 | -8/Materials | 01-MTF left 1098 | -8/Materials | Build established: Gunner 1360 | -8/Materials | Discovered new exit (range 3) 1439 | -8/Materials | Core integrity fell below 50% 1469 | -8/Materials | Core integrity fell below 20% 1480 | -8/Materials | Destroyed by Y-45 Defender with Beam Rifle Last Messages --------------- Particle Gun destroyed. Sml. Laser destroyed. Acquired 6 matter. Acquired 3 matter. Cld. Aerolev Unit destroyed. Acquired 3 matter. Weight Redist. System destroyed. Imp. Assault Rifle destroyed. Hvy. Ion Engine destroyed. Critical hit (Burn: +37). Slammed into G-47 Trooper. Critical hit (Burn: +37). Acquired 7 matter. Slammed into G-47 Trooper. Mining Laser broken. Destabilizing: Short circuit. Broken Mining Laser destroyed. Slammed into G-47 Trooper. Sml. Storage Unit destroyed. Slammed into G-47 Trooper. Map ----- +----------------------------------------------------+ | | | | | | | | | | | | | | | | | ?????????????????????????????????????????????????? | | ?????????????????????????????????????????????????? | | ?????????????????????????????????????????????????? | | ?????????????????????????##########????########### | | ?????????????????????????# #???# # | | ?????????????????????????# """ #???# """ """ # | | ?????????????????????????# """""##### """ """ # | | ?????????????????????????# """""# # """ """ # | | ?????????????????????????# """""# < # # | | ?????????????????????????# """ # # + | | ?????????????????????????# + + # | | ?????????????????????????# % # # * # | | ?????????????????????????########### ########### | | ???????????????#######?????????????# #?????????? | | ???????????????? ?????????????# ######### | | ????????????????""" ????????????# | | ??????????????? """ #######?????# | | ????????????? / """ !# @g ####### | | ????????????????? #*%% | | ??????????????????????#w%= | | ??????????# ########=%% | | ??????????+ %=!%g ######## ########## | | ????????????????######!Y% #??????# #????????? | | ?????????????????????## [ #??????# #????????? | | ??????????????????????#==!!!!#??????# #????????? | | ??????????????????????#==!!!!#??????# #????????? | | ??????????????????????########??????# #????????? | | ????????????????????????????????????# #????????? | | ????????????????????????????????????# #????????? | | ????????????????????????????????????# #????????? | | ????????????????????????????????????? #????????? | | ????????????????????????????????????? #????????? | | ????????????????????????????????????? #????????? | | ????????????????????????????????????? ?????????? | | ?????????????????????????????????????????????????? | | ?????????????????????????????????????????????????? | | ?????????????????????????????????????????????????? | | ?????????????????????????????????????????????????? | | ?????????????????????????????????????????????????? | | ?????????????????????????????????????????????????? | | ?????????????????????????????????????????????????? | | ?????????????????????????????????????????????????? | +----------------------------------------------------+ Best States ------------- Heat Dissipation 38 Energy Generation 14 Energy Capacity 280 Matter Stores 300 Matter Capacity 300 Sight Range 18 Terrain Scan Density 10 Additional Mass Support 6 Evasion (%) 55 Recoil Reduction 2 Authchip Count 1 Item Schematics ----------------- None Robot Schematics ------------------ None Fabricated ------------ Nothing Alien Tech Used ----------------- None Achievements -------------- None Challenges ------------ None Game ------ Seed PhasingTransmissionGuard Manual? 0 Play Time 00:24:27 Cumulative 18.4 hours Start 2024.05.02 @ 00:43:13 End 2024.05.02 @ 01:05:02 Sessions 1 Manual Loads 0 Difficulty Rogue Special Mode None Game No. 35 Rogue 27 Adventurer 8 Explorer 0 Win Type - Total 0 Types 0/0/0/0/0/0/0/0/0 Lore% 7 Gallery% 24 Achievement% 19 Wizard Run 0 Options --------- Layout 0 ASCII 0 Keyboard 0 Movement Mouse Keybinds 0 Fullscreen 2 Font 18/SmallcapsGlow Map View 38x25 Zoom Use 100% Tactical HUD 0 Map Filters NONE Filters NONE Steam 1 RUN: 6c1a6315-c56e-464a-9fae-731927b16f5e